bitfinex/quotes_BTCUSD_20250615
["timestamp","ask_amount","ask_price","bid_price","bid_amount"]
[1749984703573,0.06318369,105290.0,105280.0,0.86082705]
[1749984703800,0.06318369,105290.0,105280.0,0.87861008]
[1749984704015,0.06318369,105290.0,105280.0,0.87860007]
[1749984704253,0.06318369,105290.0,105280.0,0.86082433]
[1749984704494,0.06318369,105290.0,105280.0,0.87860007]
[1749984704711,0.06318369,105290.0,105280.0,0.87860026]
[1749984704924,0.06318369,105290.0,105280.0,0.86082438]
[1749984705134,0.06318369,105290.0,105280.0,0.8719347]
[1749984705359,0.06318369,105290.0,105280.0,0.87860077]
[1749984705569,0.06318369,105290.0,105280.0,0.85415842]
[1749984705786,0.06318369,105290.0,105280.0,0.87860103]
[1749984706005,0.05821867,105290.0,105280.0,0.86082459]
[1749984706226,0.05821867,105290.0,105280.0,0.87193481]
[1749984706443,0.05821867,105290.0,105280.0,0.85415842]
[1749984706664,0.05821867,105290.0,105280.0,0.87860048]
[1749984707103,0.05821867,105290.0,105280.0,0.87193488]
[1749984707324,0.05821867,105290.0,105280.0,0.87860083]
[1749984707562,0.05821867,105290.0,105280.0,0.86082456]
[1749984707995,0.05821867,105290.0,105280.0,0.87860094]
[1749984708262,0.05821867,105290.0,105280.0,0.86082456]
[1749984708485,0.05821867,105290.0,105280.0,0.87860088]
[1749984708708,0.03922452,105290.0,105280.0,0.87193476]
[1749984708921,0.04872164,105290.0,105280.0,0.86082457]
[1749984709142,0.04872164,105290.0,105280.0,0.66698457]
[1749984709361,0.04872164,105290.0,105280.0,0.86082455]
[1749984709577,0.04872164,105290.0,105280.0,0.85415842]
[1749984709789,0.04872164,105290.0,105280.0,0.87860096]
[1749984710007,0.04872164,105290.0,105280.0,0.87193483]
[1749984710220,0.04872164,105290.0,105280.0,0.87860139]
[1749984710442,0.04872164,105290.0,105280.0,0.87860218]
[1749984710662,0.04872164,105290.0,105280.0,0.878602]
[1749984710893,0.04872164,105290.0,105280.0,0.85415842]
[1749984711113,0.04872164,105290.0,105280.0,0.87860156]
[1749984711344,0.04872164,105290.0,105280.0,0.87860174]
[1749984711559,0.04872164,105290.0,105280.0,0.87860183]
[1749984711777,0.04872164,105290.0,105280.0,0.87193587]
[1749984712003,0.04872164,105290.0,105280.0,0.87860268]
[1749984712209,0.04872164,105290.0,105280.0,0.8719362]
[1749984712422,0.04872164,105290.0,105280.0,0.86082779]
[1749984712656,0.04872164,105290.0,105280.0,0.86082784]
[1749984712875,0.04872164,105290.0,105280.0,0.8786136]
[1749984713094,0.04872164,105290.0,105280.0,0.87194401]
[1749984713543,0.04872164,105290.0,105280.0,0.87861298]
[1749984713754,0.04872164,105290.0,105280.0,0.87861277]
[1749984713982,0.03922452,105290.0,105280.0,0.87861315]
[1749984714200,0.04872155,105290.0,105280.0,0.87861316]
[1749984714423,0.04872155,105290.0,105280.0,0.87861309]
[1749984714660,0.04872155,105290.0,105280.0,0.85415842]
[1749984714879,0.05821876,105290.0,105280.0,0.85415842]
[1749984715094,0.05821867,105290.0,105280.0,0.878613]
[1749984715329,0.05821867,105290.0,105280.0,0.85415842]
[1749984715553,0.05821867,105290.0,105280.0,0.87861302]
[1749984715767,0.05821867,105290.0,105280.0,0.87194358]
[1749984716032,0.05821867,105290.0,105280.0,0.87861276]
[1749984716254,0.04872155,105290.0,105280.0,0.8786126]
[1749984716479,0.04872155,105290.0,105280.0,0.87194329]
[1749984716704,0.04872155,105290.0,105280.0,0.87861261]
[1749984716928,0.04872155,105290.0,105280.0,0.87861262]
[1749984717141,0.05821876,105290.0,105280.0,0.87861257]
[1749984717386,0.04872155,105290.0,105280.0,0.87861257]
[1749984717609,0.04872155,105290.0,105280.0,0.8786123]
[1749984717837,0.04872155,105290.0,105280.0,0.86082766]
[1749984718051,0.04872155,105290.0,105280.0,0.8786123]
[1749984718283,0.04872155,105290.0,105280.0,0.87194307]
[1749984718494,0.04872155,105290.0,105280.0,0.86082766]
[1749984718722,0.24817086,105290.0,105280.0,0.67527447]
[1749984718940,0.29056834,105290.0,105280.0,0.86082791]
[1749984719180,0.29056834,105290.0,105280.0,0.87194371]
[1749984719400,0.29056834,105290.0,105280.0,0.87861277]
[1749984719619,0.29056834,105290.0,105280.0,0.8786136]
[1749984720286,0.08411678,105290.0,105280.0,0.8786136]
[1749984720730,0.28107149,105290.0,105280.0,0.86244602]
[1749984720944,0.28107149,105290.0,105280.0,0.85415787]
[1749984721160,0.28107149,105290.0,105280.0,0.87861281]
[1749984721380,0.09111993,105290.0,105280.0,0.71774227]
[1749984721596,0.09111993,105290.0,105280.0,0.86082691]
[1749984721816,0.09111993,105290.0,105280.0,0.87194184]
[1749984722029,0.09111993,105290.0,105280.0,0.87861073]
[1749984722252,0.09111993,105290.0,105280.0,0.87861062]
[1749984722484,0.07461993,105290.0,105280.0,0.87861077]
[1749984723152,0.07461993,105290.0,105280.0,0.8719418]
[1749984723365,0.07461993,105290.0,105280.0,0.87861077]
[1749984723588,0.07461993,105290.0,105280.0,0.86082692]
[1749984723874,0.07461993,105290.0,105280.0,0.87861113]
[1749984724092,0.07461993,105290.0,105280.0,0.87194208]
[1749984724306,0.07461993,105290.0,105280.0,0.86082694]
[1749984724522,0.07461993,105290.0,105280.0,0.87861115]
[1749984724741,0.07461993,105290.0,105280.0,0.85415787]
[1749984725177,0.07461993,105290.0,105280.0,0.87861117]
[1749984725390,0.06821993,105290.0,105280.0,0.87861117]
[1749984725605,0.06821993,105290.0,105280.0,0.85415787]
[1749984725819,0.06821993,105290.0,105280.0,0.87861117]
[1749984726033,0.06821993,105290.0,105280.0,0.87193037]
[1749984726254,0.06821993,105290.0,105280.0,0.87859478]
[1749984726472,0.06821993,105290.0,105280.0,0.87859477]
[1749984726712,0.06821993,105290.0,105280.0,0.87193005]
[1749984726955,0.06821993,105290.0,105280.0,0.87859461]
[1749984727197,0.03972767,105290.0,105280.0,0.87859461]
[1749984727420,0.0492247,105290.0,105280.0,0.90939461]
[1749984727647,0.6176172,105300.0,105290.0,0.19944895]
[1749984727862,0.60875739,105300.0,105290.0,0.51396672]
[1749984728076,0.61766475,105300.0,105290.0,0.51396728]
[1749984728290,0.61766475,105300.0,105290.0,0.51396731]
[1749984728548,0.61766475,105300.0,105290.0,0.51396733]
[1749984729061,0.61075739,105300.0,105290.0,0.51396594]
[1749984729288,0.61475739,105300.0,105290.0,0.51396594]
[1749984729510,0.61475739,105300.0,105290.0,0.50730122]
[1749984729769,0.61475739,105300.0,105290.0,0.51396517]
[1749984730012,0.61475739,105300.0,105290.0,0.49619468]
[1749984730303,0.61475739,105300.0,105290.0,0.50730151]
[1749984730530,0.61475739,105300.0,105290.0,0.51396523]
[1749984730865,0.61475739,105300.0,105290.0,0.51396525]
[1749984731060,0.61475739,105300.0,105290.0,0.48953071]
[1749984731227,0.61475739,105300.0,105290.0,0.50730131]
[1749984731488,0.61475739,105300.0,105290.0,0.51679879]
[1749984731741,0.61475739,105300.0,105290.0,0.50569209]
[1749984731908,0.61475739,105300.0,105290.0,0.50569207]
[1749984732112,0.61475739,105300.0,105290.0,0.50569206]
[1749984732349,0.61475739,105300.0,105290.0,0.52346285]
[1749984732577,0.61475739,105300.0,105290.0,0.52346287]
[1749984732809,0.61475739,105300.0,105290.0,0.52346319]
[1749984733033,0.61475739,105300.0,105290.0,0.50569212]
[1749984733179,0.61475739,105300.0,105290.0,0.51396574]
[1749984733420,0.61475739,105300.0,105290.0,0.51396572]
[1749984733617,0.61475739,105300.0,105290.0,0.51396571]
[1749984733821,0.61475739,105300.0,105290.0,0.51397003]
[1749984734030,0.62367023,105300.0,105290.0,0.49619914]
[1749984734240,0.62367023,105300.0,105290.0,0.51398157]
[1749984734439,0.61475739,105300.0,105290.0,0.48953071]
[1749984734717,0.62367023,105300.0,105290.0,0.4961992]
[1749984734922,0.62367023,105300.0,105290.0,0.51398163]
[1749984735130,0.62367023,105300.0,105290.0,0.51398164]
[1749984735337,0.62367023,105300.0,105290.0,0.50731327]
[1749984735552,0.62367023,105300.0,105290.0,0.51398181]
[1749984735758,0.62367023,105300.0,105290.0,0.51398169]
[1749984735972,0.62367023,105300.0,105290.0,0.5139817]
[1749984736179,0.62367023,105300.0,105290.0,0.51398192]
[1749984736387,0.61475739,105300.0,105290.0,0.51398196]
[1749984736592,0.62367023,105300.0,105290.0,0.51398306]
[1749984736808,0.62367023,105300.0,105290.0,0.51398287]
[1749984737013,0.62367023,105300.0,105290.0,0.51398293]
[1749984737228,0.62367023,105300.0,105290.0,0.51398302]
[1749984737436,0.61475739,105300.0,105290.0,0.51398302]
[1749984737644,0.61475739,105300.0,105290.0,0.50731421]
[1749984737853,0.62367023,105300.0,105290.0,0.5139831]
[1749984738072,0.61475739,105300.0,105290.0,0.5073142]
[1749984738288,0.61475739,105300.0,105290.0,0.50731428]
[1749984738525,0.62367023,105300.0,105290.0,0.50731436]
[1749984738738,0.62367023,105300.0,105290.0,0.51398331]
[1749984738945,0.62367023,105300.0,105290.0,0.51398314]
[1749984739201,0.62367023,105300.0,105290.0,0.49619958]
[1749984739410,0.62367023,105300.0,105290.0,0.51398309]
[1749984739621,0.61475739,105300.0,105290.0,0.51398309]
[1749984739835,0.61475739,105300.0,105290.0,0.51398321]
[1749984740037,0.62367023,105300.0,105290.0,0.51398321]
[1749984740275,0.61475739,105300.0,105290.0,0.48953071]
[1749984740499,0.62367023,105300.0,105290.0,0.51398391]
[1749984740704,0.62367023,105300.0,105290.0,0.507315]
[1749984740906,0.62367023,105300.0,105290.0,0.51398402]
[1749984741121,0.62367023,105300.0,105290.0,0.50731479]
[1749984741328,0.61475739,105300.0,105290.0,0.49619973]
[1749984741537,0.61475739,105300.0,105290.0,0.51398375]
[1749984741738,0.62367023,105300.0,105290.0,0.49619972]
[1749984741944,0.62367023,105300.0,105290.0,0.51398404]
[1749984742148,0.61475739,105300.0,105290.0,0.51398396]
[1749984742352,0.61475739,105300.0,105290.0,0.51398409]
[1749984742578,0.62367023,105300.0,105290.0,0.50731489]
[1749984742781,0.62367023,105300.0,105290.0,0.51398398]
[1749984743004,0.62367023,105300.0,105290.0,0.50731491]
[1749984743215,0.62367023,105300.0,105290.0,0.5073149]
[1749984743453,0.62367023,105300.0,105290.0,0.51398398]
[1749984743660,0.61475739,105300.0,105290.0,0.51398386]
[1749984743867,0.61475739,105300.0,105290.0,0.51398382]
[1749984744083,0.62367023,105300.0,105290.0,0.49619974]
[1749984744285,0.61475739,105300.0,105290.0,0.50731481]
[1749984744493,0.61475739,105300.0,105290.0,0.51398387]
[1749984744706,0.62367023,105300.0,105290.0,0.50731483]
[1749984744922,0.62367023,105300.0,105290.0,0.49619975]
[1749984745129,0.62367023,105300.0,105290.0,0.48953071]
[1749984745339,0.62367023,105300.0,105290.0,0.51398403]
[1749984745550,0.61475739,105300.0,105290.0,0.50727491]
[1749984745973,0.62367023,105300.0,105290.0,0.50727491]
[1749984746180,0.62367023,105300.0,105290.0,0.51394404]
[1749984746403,0.62367023,105300.0,105290.0,0.51394418]
[1749984746612,0.62367023,105300.0,105290.0,0.50727506]
[1749984746820,0.62367023,105300.0,105290.0,0.48949071]
[1749984747028,0.62367023,105300.0,105290.0,0.50727491]
[1749984747230,0.62367023,105300.0,105290.0,0.52344128]
[1749984747436,0.62367023,105300.0,105290.0,0.52344133]
[1749984747643,0.62367023,105300.0,105290.0,0.5234413]
[1749984747844,0.61475739,105300.0,105290.0,0.52343746]
[1749984748050,0.59865739,105300.0,105290.0,0.52343747]
[1749984748270,0.59865739,105300.0,105290.0,0.51676185]
[1749984748476,0.59865739,105300.0,105290.0,0.52342704]
[1749984748682,0.59865739,105300.0,105290.0,0.51676185]
[1749984748888,0.59865739,105300.0,105290.0,0.50565319]
[1749984749350,0.61415739,105300.0,105290.0,0.34199589]
[1749984749571,0.61415739,105300.0,105290.0,0.50726462]
[1749984749781,0.61415739,105300.0,105290.0,0.49615596]
[1749984750010,0.61415739,105300.0,105290.0,0.49615598]
[1749984750220,0.61415739,105300.0,105290.0,0.51393004]
[1749984750398,0.61415739,105300.0,105290.0,0.49615598]
[1749984750666,0.61415739,105300.0,105290.0,0.51392994]
[1749984750879,0.61415739,105300.0,105290.0,0.49615594]
[1749984751094,0.61415739,105300.0,105290.0,0.49615604]
[1749984751319,0.61415739,105300.0,105290.0,0.50726493]
[1749984751538,0.61415739,105300.0,105290.0,0.51393041]
[1749984751765,0.61415739,105300.0,105290.0,0.51393042]
[1749984751984,0.61415739,105300.0,105290.0,0.51392998]
[1749984752202,0.61415739,105300.0,105290.0,0.51392986]
[1749984752413,0.59865739,105300.0,105290.0,0.51392987]
[1749984752827,0.59865739,105300.0,105290.0,0.49615591]
[1749984752954,0.59865739,105300.0,105290.0,0.51392996]
[1749984753166,0.59865739,105300.0,105290.0,0.50726471]
[1749984753366,0.59865739,105300.0,105290.0,0.49615591]
[1749984753591,0.59865739,105300.0,105290.0,0.51393022]
[1749984753749,0.59865739,105300.0,105290.0,0.50443283]
[1749984753967,0.59865739,105300.0,105290.0,0.5234278]
[1749984754186,0.59865739,105300.0,105290.0,0.49898837]
[1749984754431,0.59865739,105300.0,105290.0,0.51676238]
[1749984754655,0.59865739,105300.0,105290.0,0.51676275]
[1749984754889,0.59865739,105300.0,105290.0,0.51676249]
[1749984755107,0.59865739,105300.0,105290.0,0.52342784]
[1749984755339,0.59865739,105300.0,105290.0,0.52342806]
[1749984755598,0.59865739,105300.0,105290.0,0.52342809]
[1749984755821,0.59865739,105300.0,105290.0,0.52342813]
[1749984756042,0.60757026,105300.0,105290.0,0.52344259]
[1749984756254,0.60757026,105300.0,105290.0,0.516773]
[1749984756255,0.59865739,105300.0,105290.0,0.516773]
[1749984756481,0.62307026,105300.0,105290.0,0.52344222]
[1749984756693,0.62307026,105300.0,105290.0,0.49898837]
[1749984756926,0.61415739,105300.0,105290.0,0.52344178]
[1749984757163,0.62307026,105300.0,105290.0,0.5044467]
[1749984757383,0.61415739,105300.0,105290.0,0.51394394]
[1749984757601,0.62307026,105300.0,105290.0,0.48949089]
[1749984757829,0.62307026,105300.0,105290.0,0.51394401]
[1749984758100,0.61415739,105300.0,105290.0,0.51394399]
[1749984758346,0.61415739,105300.0,105290.0,0.49615995]
[1749984758606,0.62307029,105300.0,105290.0,0.51394424]
[1749984758871,0.62307029,105300.0,105290.0,0.51394467]
[1749984759136,0.61415739,105300.0,105290.0,0.51394474]
[1749984759416,0.62307029,105300.0,105290.0,0.51394471]
[1749984759647,0.61415739,105300.0,105290.0,0.48949089]
[1749984759884,0.62307029,105300.0,105290.0,0.49616003]
[1749984760099,0.62307029,105300.0,105290.0,0.5139444]
[1749984760324,0.62307029,105300.0,105290.0,0.48949089]
[1749984760537,0.61415739,105300.0,105290.0,0.51394448]
[1749984760775,0.62307029,105300.0,105290.0,0.50727527]
[1749984761005,0.60757029,105300.0,105290.0,0.51394478]
[1749984761222,0.59865739,105300.0,105290.0,0.29953933]
[1749984761444,0.60757029,105300.0,105290.0,0.32399327]
[1749984761664,0.59865739,105300.0,105290.0,0.29953933]
[1749984761889,0.59107029,105300.0,105290.0,0.32399296]
[1749984762151,0.59107029,105300.0,105290.0,0.29953933]
[1749984762372,0.59107029,105300.0,105290.0,0.32399102]
[1749984762594,0.58215739,105300.0,105290.0,0.29953933]
[1749984762802,0.59107029,105300.0,105290.0,0.32398788]
[1749984763041,0.59107029,105300.0,105290.0,0.30620672]
[1749984763247,0.59107029,105300.0,105290.0,0.29953933]
[1749984763460,0.58215739,105300.0,105290.0,0.32398692]
[1749984763670,0.58215739,105300.0,105290.0,0.29953933]
[1749984763881,0.58215739,105300.0,105290.0,0.30620677]
[1749984764105,0.58215739,105300.0,105290.0,0.30620674]
[1749984764328,0.59107029,105300.0,105290.0,0.30620654]
[1749984764574,0.59107029,105300.0,105290.0,0.32398574]
[1749984764806,0.58215739,105300.0,105290.0,0.3239858]
[1749984765037,0.59107028,105300.0,105290.0,0.30620653]
[1749984765279,0.58215739,105300.0,105290.0,0.3239858]
[1749984765486,0.59107029,105300.0,105290.0,0.31731881]
[1749984765714,0.58215739,105300.0,105290.0,0.30620666]
[1749984765939,0.59107029,105300.0,105290.0,0.32398617]
[1749984766156,0.58215739,105300.0,105290.0,0.32398595]
[1749984766391,0.59107029,105300.0,105290.0,0.32398617]
[1749984766601,0.58215739,105300.0,105290.0,0.32398617]
[1749984766818,0.59107029,105300.0,105290.0,0.32398609]
[1749984767035,0.58215739,105300.0,105290.0,0.31731884]
[1749984767252,0.59107029,105300.0,105290.0,0.31731884]
[1749984767459,0.58215739,105300.0,105290.0,0.30620664]
[1749984767682,0.58215739,105300.0,105290.0,0.29953933]
[1749984768104,0.59107029,105300.0,105290.0,0.31731867]
[1749984768349,0.59107029,105300.0,105290.0,0.30620657]
[1749984768559,0.59107029,105300.0,105290.0,0.32398592]
[1749984768772,0.58215739,105300.0,105290.0,0.30620658]
[1749984768993,0.58215739,105300.0,105290.0,0.30620664]
[1749984769217,0.58215739,105300.0,105290.0,0.31731865]
[1749984769435,0.59107029,105300.0,105290.0,0.30620657]
[1749984769705,0.58215739,105300.0,105290.0,0.30620657]
[1749984769934,0.59107029,105300.0,105290.0,0.31731863]
[1749984770149,0.59107029,105300.0,105290.0,0.30620535]
[1749984770372,0.59106866,105300.0,105290.0,0.32398139]
[1749984770599,0.59106866,105300.0,105290.0,0.31731538]
[1749984770600,0.58215739,105300.0,105290.0,0.31731538]
[1749984770812,0.58215739,105300.0,105290.0,0.31731537]
[1749984771032,0.59106866,105300.0,105290.0,0.31731538]
[1749984771259,0.59106866,105300.0,105290.0,0.32398159]
[1749984771494,0.59106866,105300.0,105290.0,0.31731542]
[1749984771689,0.59106866,105300.0,105290.0,0.30620541]
[1749984771918,0.58215739,105300.0,105290.0,0.31731556]
[1749984772157,0.59106866,105300.0,105290.0,0.31444414]
[1749984772369,0.58215739,105300.0,105290.0,0.29000176]
[1749984772584,0.59106866,105300.0,105290.0,0.30777799]
[1749984772817,0.58215739,105300.0,105290.0,0.3144441]
[1749984773037,0.59106866,105300.0,105290.0,0.29000176]
[1749984773262,0.58215739,105300.0,105290.0,0.50439575]
[1749984773487,0.59106866,105300.0,105290.0,0.31444426]
[1749984773724,0.59106866,105300.0,105290.0,0.29000176]
[1749984773725,0.58215739,105300.0,105290.0,0.29000176]
[1749984773959,0.59106866,105300.0,105290.0,0.32394184]
[1749984774165,0.58215739,105300.0,105290.0,0.3172757]
[1749984774376,0.58215739,105300.0,105290.0,0.30616539]
[1749984774592,0.59106866,105300.0,105290.0,0.29949933]
[1749984774842,0.59106866,105300.0,105290.0,0.3239416]
[1749984775053,0.59106866,105300.0,105290.0,0.31727553]
[1749984775281,0.58215739,105300.0,105290.0,0.13018161]
[1749984775501,0.58215739,105300.0,105290.0,0.3172757]
[1749984775727,0.58215739,105300.0,105290.0,0.29949933]
[1749984775974,0.59106865,105300.0,105290.0,0.32394204]
[1749984776175,0.58215739,105300.0,105290.0,0.32394205]
[1749984776420,0.58215739,105300.0,105290.0,0.31727567]
[1749984776647,0.59106865,105300.0,105290.0,0.32394181]
[1749984776863,0.58215739,105300.0,105290.0,0.39320913]
[1749984777082,0.59106865,105300.0,105290.0,0.39320913]
[1749984777338,0.59106865,105300.0,105290.0,0.39987519]
[1749984777559,0.59106865,105300.0,105290.0,0.41765177]
[1749984777782,0.56252829,105300.0,105290.0,0.4176553]
[1749984778003,0.56252829,105300.0,105290.0,0.40270661]
[1749984778233,0.56252829,105300.0,105290.0,0.42715383]
[1749984778449,0.56252829,105300.0,105290.0,0.40270661]
[1749984778671,0.56252829,105300.0,105290.0,0.42715333]
[1749984778886,0.56252829,105300.0,105290.0,0.42048597]
[1749984779319,0.55361539,105300.0,105290.0,0.42715335]
[1749984779535,0.55361539,105300.0,105290.0,0.42048615]
[1749984779743,0.56252829,105300.0,105290.0,0.42048615]
[1749984779947,0.55361539,105300.0,105290.0,0.42048615]
[1749984780163,0.56252829,105300.0,105290.0,0.42715353]
[1749984780396,0.55361539,105300.0,105290.0,0.43665096]
[1749984780590,0.56252829,105300.0,105290.0,0.45215102]
[1749984780798,0.56252829,105300.0,105290.0,0.45215106]
[1749984781037,0.56252829,105300.0,105290.0,0.452151]
[1749984781238,0.56252829,105300.0,105290.0,0.44548392]
[1749984781444,0.56252829,105300.0,105290.0,0.45215157]
[1749984781664,0.55361539,105300.0,105290.0,0.45215156]
[1749984782107,0.56252829,105300.0,105290.0,0.427704]
[1749984782321,0.55361539,105300.0,105290.0,0.45215078]
[1749984782527,0.56252829,105300.0,105290.0,0.44548349]
[1749984782746,0.55361539,105300.0,105290.0,0.427704]
[1749984782964,0.56252829,105300.0,105290.0,0.44548379]
[1749984783171,0.55361539,105300.0,105290.0,0.45215111]
[1749984783388,0.56252829,105300.0,105290.0,0.44548369]
[1749984783626,0.56252829,105300.0,105290.0,0.45215119]
[1749984783845,0.5530318,105300.0,105290.0,0.20042741]
[1749984784056,0.5441189,105300.0,105290.0,0.20042739]
[1749984784497,0.5530318,105300.0,105290.0,0.19376]
[1749984784706,0.5530318,105300.0,105290.0,0.20042739]
[1749984784980,0.5441189,105300.0,105290.0,0.2004275]
[1749984785191,0.5530318,105300.0,105290.0,0.21820766]
[1749984785403,0.5530318,105300.0,105290.0,0.21820787]
[1749984785613,0.5530318,105300.0,105290.0,0.21820795]
[1749984785827,0.5530318,105300.0,105290.0,0.21820791]
[1749984786041,0.5530318,105300.0,105290.0,0.2182079]
[1749984786257,0.5530318,105300.0,105290.0,0.21153976]
[1749984786465,0.5530318,105300.0,105290.0,0.21820743]
[1749984786676,0.5530318,105300.0,105290.0,0.21820763]
[1749984786884,0.5530318,105300.0,105290.0,0.20042758]
[1749984787081,0.5441189,105300.0,105290.0,0.21820767]
[1749984787339,0.5441189,105300.0,105290.0,0.21820756]
[1749984787596,0.5530318,105300.0,105290.0,0.19376]
[1749984787756,0.5441189,105300.0,105290.0,0.21154155]
[1749984787958,0.5530318,105300.0,105290.0,0.20042799]
[1749984788184,0.5441189,105300.0,105290.0,0.2115413]
[1749984788384,0.5530318,105300.0,105290.0,0.21820948]
[1749984788606,0.5530318,105300.0,105290.0,0.20042818]
[1749984788804,0.5530318,105300.0,105290.0,0.2182101]
[1749984789007,0.5530318,105300.0,105290.0,0.21821021]
[1749984789208,0.5441189,105300.0,105290.0,0.21154217]
[1749984789437,0.5530318,105300.0,105290.0,0.21821035]
[1749984789687,0.5441189,105300.0,105290.0,0.21821023]
[1749984789922,0.5441189,105300.0,105290.0,0.21821018]
[1749984790134,0.5530318,105300.0,105290.0,0.21154194]
[1749984790342,0.5441189,105300.0,105290.0,0.20042812]
[1749984790566,0.5530318,105300.0,105290.0,0.21820969]
[1749984790776,0.5530318,105300.0,105290.0,0.19376]
[1749984790983,0.5530318,105300.0,105290.0,0.2182094]
[1749984791202,0.5530318,105300.0,105290.0,0.02444933]
[1749984791415,0.5530318,105300.0,105290.0,0.21816979]
[1749984791625,0.5530318,105300.0,105290.0,0.21816978]
[1749984791864,0.5530318,105300.0,105290.0,0.21150181]
[1749984792084,0.5441189,105300.0,105290.0,0.21816993]
[1749984792270,0.5530318,105300.0,105290.0,0.21816993]
[1749984792557,0.5530318,105300.0,105290.0,0.21816978]
[1749984792776,0.5441189,105300.0,105290.0,0.21816976]
[1749984793000,1.0775318,105300.0,105290.0,0.02445091]
[1749984793249,0.01899786,105270.0,105260.0,0.26934678]
[1749984793466,0.21848516,105270.0,105260.0,0.55931207]
[1749984793691,0.21848516,105270.0,105260.0,0.53086739]
[1749984793910,0.20898632,105270.0,105260.0,0.52136756]
[1749984794117,0.21863209,105270.0,105260.0,0.33714757]
[1749984794339,0.21863209,105270.0,105260.0,0.54036749]
[1749984794560,0.21963209,105270.0,105260.0,0.35609224]
[1749984794775,0.21963209,105270.0,105260.0,0.53086757]
[1749984794985,0.5501328,105270.0,105260.0,0.13584176]
[1749984795200,0.5501328,105270.0,105260.0,0.28996176]
[1749984795424,0.57916067,105270.0,105260.0,0.29096176]
[1749984796081,0.56966129,105270.0,105260.0,0.48096746]
[1749984796309,0.56966129,105270.0,105260.0,0.49046765]
[1749984797609,0.56966129,105270.0,105260.0,0.29096176]
[1749984797823,0.56966129,105270.0,105260.0,0.30046204]
[1749984798486,0.56966129,105270.0,105260.0,0.09724176]
[1749984798699,0.56966129,105270.0,105260.0,0.29100176]
[1749984799149,0.56966129,105270.0,105260.0,0.30050204]
[1749984799662,0.56966129,105270.0,105260.0,0.04064]
[1749984799876,0.56966129,105270.0,105260.0,0.19476]
[1749984800028,0.59821529,105270.0,105260.0,0.19476]
[1749984805177,0.59821529,105270.0,105260.0,0.21256232]
[1749984805452,0.59821529,105270.0,105260.0,0.001]
[1749984805710,0.59821529,105270.0,105260.0,0.21256459]
[1749984805945,0.59821529,105270.0,105260.0,0.21256511]
[1749984806356,0.59821529,105270.0,105260.0,0.19476]
[1749984806581,0.59821529,105270.0,105260.0,0.21256518]
[1749984806790,0.59821529,105270.0,105260.0,0.19476]
[1749984807211,0.59821529,105270.0,105260.0,0.21256511]
[1749984807433,0.59821529,105270.0,105260.0,0.21256498]
[1749984808283,0.59821529,105270.0,105260.0,0.21256506]
[1749984808506,0.59821529,105270.0,105260.0,0.19476]
[1749984809163,0.59821529,105270.0,105260.0,0.21256502]
[1749984809373,0.59821529,105270.0,105260.0,0.19476]
[1749984810218,0.59821529,105270.0,105260.0,0.21256498]
[1749984810450,0.59821529,105270.0,105260.0,0.21256524]
[1749984810659,0.59821529,105270.0,105260.0,0.19476]
[1749984811103,0.59821529,105270.0,105260.0,0.22816592]
[1749984811311,0.59821529,105270.0,105260.0,0.21036]
[1749984811743,0.59821529,105270.0,105260.0,0.22816566]
[1749984811954,0.59821529,105270.0,105260.0,0.22816597]
[1749984812164,0.59821529,105270.0,105260.0,0.2281656]
[1749984812367,0.6224856,105270.0,105260.0,0.22816568]
[1749984812577,0.59821529,105270.0,105260.0,0.21036]
[1749984812804,0.59821529,105270.0,105260.0,0.22816508]
[1749984813010,0.59821529,105270.0,105260.0,0.22816589]
[1749984813434,0.59821529,105270.0,105260.0,0.21036]
[1749984813647,0.59821529,105270.0,105260.0,0.22816598]
[1749984813856,0.59821529,105270.0,105260.0,0.21036]
[1749984814282,0.59821529,105270.0,105260.0,0.22816571]
[1749984814490,0.59821529,105270.0,105260.0,0.4276716]
[1749984815129,0.59821529,105270.0,105260.0,0.40986589]
[1749984815588,0.59821529,105270.0,105260.0,0.42767131]
[1749984815792,0.6224856,105270.0,105260.0,0.42767131]
[1749984816072,0.59821529,105270.0,105260.0,0.42767131]
[1749984816337,0.59821529,105270.0,105260.0,0.42767049]
[1749984816589,0.59821529,105270.0,105260.0,0.42767086]
[1749984816799,0.59821529,105270.0,105260.0,0.40986589]
[1749984817017,0.59821529,105270.0,105260.0,0.42767165]
[1749984817283,0.59821529,105270.0,105260.0,0.4276716]
[1749984817489,0.59821529,105270.0,105260.0,0.43717179]
[1749984817705,0.59821529,105270.0,105260.0,0.43711849]
[1749984818360,0.59821529,105270.0,105260.0,0.41936617]
[1749984819018,0.59821529,105270.0,105260.0,0.43711911]
[1749984819263,0.59821529,105270.0,105260.0,0.40986598]
[1749984819471,0.59821529,105270.0,105260.0,0.43712249]
[1749984819681,0.59821529,105270.0,105260.0,0.41936617]
[1749984820107,0.59821529,105270.0,105260.0,0.4371228]
[1749984820320,0.59821529,105270.0,105260.0,0.41936617]
[1749984820543,0.59821529,105270.0,105260.0,0.43712254]
[1749984820965,0.59821529,105270.0,105260.0,0.43712241]
[1749984821176,0.59821529,105270.0,105260.0,0.43712242]
[1749984821379,0.59821529,105270.0,105260.0,0.43712233]
[1749984821817,0.59821529,105270.0,105260.0,0.43712216]
[1749984822026,0.59821529,105270.0,105260.0,0.43712214]
[1749984822230,0.59821529,105270.0,105260.0,0.43712215]
[1749984822414,0.59821529,105270.0,105260.0,0.43712236]
[1749984822683,0.59821529,105270.0,105260.0,0.43712226]
[1749984822892,0.59821529,105270.0,105260.0,0.41936617]
[1749984823130,0.59821529,105270.0,105260.0,0.43712232]
[1749984823338,0.59821529,105270.0,105260.0,0.43712233]
[1749984823774,0.59821529,105270.0,105260.0,0.43712236]
[1749984824191,0.59821529,105270.0,105260.0,0.43712233]
[1749984824403,0.59821529,105270.0,105260.0,0.24341539]
[1749984824615,0.59821529,105270.0,105260.0,0.43713533]
[1749984824825,0.59821529,105270.0,105260.0,0.41932617]
[1749984825261,0.59821529,105270.0,105260.0,0.43713558]
[1749984825472,0.59821529,105270.0,105260.0,0.41932617]
[1749984825748,0.59821529,105270.0,105260.0,0.43713554]
[1749984825974,0.37967364,105270.0,105260.0,0.5503675]
[1749984826197,0.01064577,105270.0,105260.0,0.5503675]
[1749984826423,0.01064577,105270.0,105260.0,0.56817119]
[1749984826647,0.01064577,105270.0,105260.0,0.56817155]
[1749984826885,0.01064577,105270.0,105260.0,0.56817072]
[1749984827133,0.01064577,105270.0,105260.0,0.59661335]
[1749984827392,0.01064577,105270.0,105260.0,0.59661337]
[1749984827616,0.01064577,105270.0,105260.0,0.57881218]
[1749984827874,0.01064577,105270.0,105260.0,0.57484387]
[1749984828100,0.01064577,105270.0,105260.0,0.57484428]
[1749984828542,0.01064577,105270.0,105260.0,0.5748442]
[1749984828766,0.01064577,105270.0,105260.0,0.56816875]
[1749984828992,0.01064577,105270.0,105260.0,0.57484412]
[1749984829209,0.01064577,105270.0,105260.0,0.5503675]
[1749984829425,0.01064577,105270.0,105260.0,0.55704293]
[1749984829665,0.01064577,105270.0,105260.0,0.56816866]
[1749984829889,0.01064577,105270.0,105260.0,0.55704294]
[1749984830116,0.01064577,105270.0,105260.0,0.56816863]
[1749984830331,0.01064577,105270.0,105260.0,0.57484416]